bitfinex/quotes_SOLUSD_20240826
["timestamp","ask_amount","ask_price","bid_price","bid_amount"]
[1724638702116,26.3043,158.63,158.58,6.3059]
[1724638702326,20.0,158.63,158.59,6.3055]
[1724638702527,20.0,158.63,158.58,6.3059]
[1724638702528,27.88054031,158.63,158.58,6.3059]
[1724638702717,45.0,158.62,158.58,6.3059]
[1724638702913,1.57649795,158.61,158.58,6.3059]
[1724638703113,46.57649707,158.62,158.58,6.3059]
[1724638703931,1.57649707,158.62,158.59,6.3054]
[1724638704241,20.0,158.63,158.59,6.3054]
[1724638705750,12.3396,158.64,158.55,12.24131293]
[1724638705751,7.61234007,158.64,158.55,12.24131293]
[1724638705959,12.3994,158.68,158.63,6.3039]
[1724638706452,12.3994,158.68,158.62,6.3043]
[1724638706623,7.87839209,158.67,158.62,6.3043]
[1724638707156,6.3028,158.66,158.61,6.3046]
[1724638707325,6.3041,158.63,158.58,3.92124725]
[1724638707523,13.8177603,158.63,158.58,6.3059]
[1724638708173,13.8177603,158.63,158.59,6.3052]
[1724638710451,1.57644737,158.63,158.59,6.3052]
[1724638712536,6.3037,158.64,158.59,6.3052]
[1724638714650,6.304,158.63,158.58,6.3059]
[1724638715847,1.57635944,158.62,158.58,6.3059]
[1724638716166,52.88095944,158.62,158.56,22.4857]
[1724638716352,52.88095944,158.62,158.57,6.3062]
[1724638717244,18.27341293,158.61,158.52,15.8987]
[1724638717444,18.27341293,158.61,158.53,10.23000289]
[1724638717445,6.306,158.58,158.53,10.23000289]
[1724638717741,1.57686742,158.57,158.54,6.3075]
[1724638718873,1.57686742,158.57,158.53,3.92269139]
[1724638719077,20.12488035,158.57,158.53,3.92269139]
[1724638719251,51.3068,158.56,158.51,6.3087]
[1724638719446,1.5772194,158.55,158.51,6.3087]
[1724638719765,18.54761293,158.57,158.51,6.3087]
[1724638720082,6.3059,158.58,158.52,6.3082]
[1724638720249,1.57702495,158.57,158.52,6.3082]
[1724638722456,1.57702495,158.57,158.52,5.8082]
[1724638723348,20.12473788,158.57,158.52,5.8082]
[1724638724254,13.81833788,158.57,158.53,7.88681494]
[1724638724451,13.81833788,158.57,158.53,6.3079]
[1724638728870,20.12463788,158.57,158.52,6.3082]
[1724638729052,20.12463788,158.57,158.53,1.57890481]
[1724638729251,20.12463788,158.57,158.52,6.3082]
[1724638729473,20.12463788,158.57,158.53,1.57891627]
[1724638729665,20.12463788,158.57,158.52,6.3082]
[1724638730785,6.306,158.58,158.53,6.3079]
[1724638730958,18.54731293,158.58,158.53,6.3079]
[1724638731155,1.57699266,158.57,158.53,6.3079]
[1724638731653,7.88339266,158.57,158.52,6.3083]
[1724638731853,7.88339266,158.57,158.48,27.61251293]
[1724638731854,12.24131293,158.54,158.48,15.3712]
[1724638732055,1.57723012,158.53,158.49,1.57914673]
[1724638732267,1.57723012,158.53,158.5,1.57914673]
[1724638732471,12.24131293,158.52,158.47,6.3102]
[1724638732681,1.57740702,158.51,158.48,1.57927239]
[1724638732858,1.57740702,158.51,158.49,1.57927239]
[1724638733052,1.57740702,158.51,158.48,6.3099]
[1724638738293,12.24131293,158.52,158.48,6.3099]
[1724638738874,1.57740373,158.51,158.48,6.3099]
[1724638740914,12.24131293,158.5,158.46,1.57930571]
[1724638741096,1.57761504,158.49,158.46,1.57930571]
[1724638741912,13.81898679,158.48,158.42,1.57930571]
[1724638742114,6.3119,158.43,158.41,1.57930571]
[1724638742327,13.81960831,158.42,158.37,1.5799702]
[1724638742488,33.2165,158.47,158.32,22.1092]
[1724638742489,12.24131293,158.4,158.32,22.1092]
[1724638742818,1.57858273,158.39,158.35,6.315]
[1724638743035,1.57858273,158.39,158.33,1.58044182]
[1724638743036,12.24131293,158.38,158.34,6.3154]
[1724638743328,12.24131293,158.36,158.33,6.3155]
[1724638743632,12.24131293,158.36,158.28,21.884]
[1724638743801,12.24131293,158.38,158.34,6.3155]
[1724638744026,36.8148056,158.4,158.34,6.3155]
[1724638744301,20.0,158.39,158.34,6.3155]
[1724638745093,1.57884529,158.38,158.35,6.315]
[1724638746001,20.0,158.39,158.35,6.315]
[1724638748300,32.25293823,158.38,158.34,6.3154]
[1724638748719,30.6741056,158.38,158.34,6.3154]
[1724638750132,32.25296857,158.38,158.34,6.3154]
[1724638750626,32.25296857,158.38,158.35,6.3151]
[1724638751026,1.57886297,158.38,158.35,6.3151]
[1724638753225,20.0,158.39,158.35,6.3151]
[1724638753423,20.0,158.39,158.36,6.3146]
[1724638756619,12.90466646,158.43,158.31,30.6741056]
[1724638756823,6.3122,158.43,158.32,61.4862]
[1724638757028,1.57850997,158.42,158.32,61.4862]
[1724638757526,21.57850997,158.42,158.32,61.4862]
[1724638758428,58.56501557,158.42,158.37,6.3143]
[1724638759115,58.56501557,158.42,158.36,6.3146]
[1724638760127,56.9865056,158.42,158.37,6.314]
[1724638760505,1.57865466,158.41,158.37,6.314]
[1724638760705,56.9865056,158.42,158.37,6.314]
[1724638762527,56.9865056,158.42,158.32,16.4862]
[1724638762528,20.0,158.42,158.38,5.8139]
[1724638762716,20.0,158.43,158.38,5.8139]
[1724638763325,1.57855408,158.42,158.38,5.8139]
[1724638764029,12.26532267,158.41,158.38,5.8139]
[1724638764607,1.57854392,158.4,158.37,6.3142]
[1724638765831,12.26532267,158.41,158.37,6.3142]
[1724638766125,1.57856917,158.4,158.37,6.3142]
[1724638767108,13.84389453,158.41,158.37,6.3142]
[1724638767431,12.26532267,158.41,158.37,6.3142]
[1724638767728,12.26532267,158.41,158.38,6.3139]
[1724638768715,1.57849072,158.4,158.37,6.3142]
[1724638770232,13.84383537,158.41,158.37,6.3142]
[1724638770430,12.26532267,158.41,158.37,6.3142]
[1724638770606,12.26532267,158.41,158.32,16.4862]
[1724638770929,34.46673911,158.43,158.38,6.3139]
[1724638771134,46.73191691,158.43,158.38,6.3139]
[1724638771331,1.57836447,158.42,158.38,6.3139]
[1724638771838,26.57633102,158.43,158.39,6.3135]
[1724638772017,1.57831353,158.42,158.38,6.3138]
[1724638774656,38.57722267,158.43,158.38,6.3138]
[1724638775338,12.26532267,158.41,158.37,22.7538]
[1724638775911,18.57812267,158.41,158.37,16.4396]
[1724638776111,18.57812267,158.41,158.36,6.3146]
[1724638776339,12.26532267,158.39,158.36,6.3146]
[1724638777137,1.57864996,158.38,158.36,6.3146]
[1724638777642,12.26532267,158.39,158.36,6.3146]
[1724638777838,1.57865243,158.4,158.36,6.3146]
[1724638778525,18.57762267,158.42,158.37,6.3142]
[1724638778726,21.57848017,158.41,158.37,6.3142]
[1724638786727,26.3127,158.41,158.37,6.3142]
[1724638787536,18.57842267,158.4,158.36,6.3146]
[1724638787746,1.57866298,158.39,158.36,6.3146]
[1724638788641,1.57866298,158.39,158.35,6.315]
[1724638788847,12.26532267,158.38,158.33,15.2046]
[1724638789034,1.578856,158.37,158.33,15.2046]
[1724638791165,6.315,158.36,158.33,15.2046]
[1724638791462,1.57897455,158.35,158.31,6.3163]
[1724638791627,12.26532267,158.36,158.32,6.3161]
[1724638792952,18.57922267,158.38,158.33,6.3157]
[1724638793160,18.57872267,158.4,158.34,6.3154]
[1724638793360,20.0,158.39,158.34,6.3154]
[1724638793589,21.57867903,158.39,158.34,6.3154]
[1724638794093,27.89247903,158.39,158.34,6.3154]
[1724638794260,26.3138,158.39,158.34,6.3154]
[1724638795667,1.57880506,158.38,158.34,6.3154]
[1724638797155,13.84412773,158.38,158.34,6.3154]
[1724638797366,20.15812773,158.38,158.32,6.3159]
[1724638798385,20.15812773,158.38,158.33,6.3158]
[1724638799977,6.3143,158.37,158.33,6.3158]
[1724638800486,20.15899742,158.36,158.29,15.2403]
[1724638800687,1.57905722,158.35,158.29,15.2403]
[1724638800896,1.57905722,158.35,158.3,6.317]
[1724638800897,7.89435722,158.35,158.3,6.317]
[1724638801198,12.26532267,158.34,158.3,6.317]
[1724638801388,1.57922165,158.33,158.3,6.317]
[1724638802398,6.316,158.33,158.28,6.3178]
[1724638802895,18.58082267,158.34,158.29,6.3174]
[1724638803062,6.3155,158.34,158.29,6.3174]
[1724638804861,1.57932371,158.33,158.29,6.3174]
[1724638805302,1.57932339,158.33,158.29,6.3174]
[1724638805666,6.3155,158.34,158.29,6.3174]
[1724638806379,7.89476191,158.34,158.29,6.3174]
[1724638806892,12.26532267,158.33,158.29,6.3174]
[1724638807902,12.26532267,158.31,158.25,16.4608]
[1724638808198,12.26532267,158.29,158.25,16.4608]
[1724638808507,18.58362267,158.27,158.22,7.1384039]
[1724638808705,1.57998985,158.26,158.22,7.1384039]
[1724638809568,1.57998985,158.26,158.22,0.8185039]
[1724638809802,12.26532267,158.25,158.22,0.8185039]
[1724638810000,1.58015828,158.24,158.22,0.8185039]
[1724638810179,6.3179,158.28,158.22,7.1387039]
[1724638810381,1.5800304,158.27,158.22,7.1387039]
[1724638810580,1.58003531,158.26,158.22,7.1387039]
[1724638810890,18.58322267,158.28,158.22,7.1387039]
[1724638811210,12.26532267,158.26,158.22,0.8185039]
[1724638811385,66.5799772,158.27,158.22,0.8185039]
[1724638811386,12.26532267,158.24,158.22,0.8185039]
[1724638811996,12.26532267,158.26,158.22,0.8185039]
[1724638812223,6.3186,158.27,158.22,0.8185039]
[1724638812379,20.0,158.26,158.22,0.8185039]
[1724638812581,32.26532267,158.26,158.22,0.8185039]
[1724638812994,12.26532267,158.28,158.24,6.3194]
[1724638813199,20.0,158.27,158.23,6.3198]
[1724638813392,12.26532267,158.26,158.22,0.8185039]
[1724638814477,12.26532267,158.26,158.22,7.1387039]
[1724638815095,13.84527819,158.26,158.22,0.8185039]
[1724638815399,12.26532267,158.24,158.22,0.8185039]
[1724638815988,1.58006708,158.23,158.22,0.8185039]
[1724638816604,7.90034614,158.23,158.22,0.8185039]
[1724638816782,72.90034614,158.23,158.22,0.8185039]
[1724638817502,6.3215,158.19,158.14,6.3233]
[1724638817713,20.16804256,158.18,158.13,15.536]
[1724638817872,18.58732267,158.18,158.13,15.536]
[1724638818079,12.26532267,158.16,158.12,6.324]
[1724638818282,12.26532267,158.16,158.1,6.3247]
[1724638818517,12.26532267,158.16,158.11,6.3246]
[1724638819007,18.58802267,158.16,158.11,6.3246]
[1724638819211,6.324,158.13,158.09,15.536]
[1724638819406,12.26532267,158.1,158.07,0.8185039]
[1724638819731,1.58154817,158.09,158.07,0.8185039]
[1724638819908,12.26532267,158.08,158.07,0.8185039]
[1724638820104,20.0,158.1,158.07,0.8185039]
[1724638820305,12.26532267,158.08,158.07,0.8185039]
[1724638820810,13.84727493,158.08,158.07,0.8185039]
[1724638821109,12.26532267,158.08,158.07,0.8185039]
[1724638821300,1.58195132,158.08,158.07,0.8185039]
[1724638821524,13.84727399,158.08,158.07,0.8185039]
[1724638821805,77.26532267,158.08,158.07,0.8185039]
[1724638821980,77.26532267,158.08,158.0,28.019825]
[1724638821981,97.40492067,158.08,158.0,28.019825]
[1724638822181,74.49315772,158.07,158.0,28.019825]
[1724638822403,30.82282442,158.01,158.0,28.019825]
[1724638822598,52.40527633,158.01,158.0,28.019825]
[1724638822785,6.3283,158.02,158.0,28.019825]
[1724638822987,6.3278,158.04,158.0,28.019825]
[1724638823189,30.82282442,158.01,158.0,28.019825]
[1724638823899,50.82282442,158.03,158.0,28.019825]
[1724638824107,30.82282442,158.09,158.0,28.019825]
[1724638824279,20.0,158.19,158.0,28.019825]
[1724638824280,6.3825,158.18,158.01,32.08120041]
[1724638824477,6.3243,158.12,158.02,0.80341]
[1724638824695,37.14712442,158.12,158.02,0.80341]
[1724638824906,37.14712442,158.12,158.02,1.26531664]
[1724638825127,30.82282442,158.14,158.09,6.3254]
[1724638825279,30.82282442,158.14,158.08,6.3256]
[1724638825786,1.58142657,158.13,158.08,6.3256]
[1724638826694,7.90532657,158.13,158.07,6.3262]
[1724638827008,1.58142657,158.13,158.07,6.3262]
[1724638827219,20.0,158.13,158.08,6.3258]
[1724638827408,21.58138364,158.13,158.07,6.3259]
[1724638828503,21.58138364,158.13,158.02,20.0]
[1724638828697,27.90538364,158.13,158.03,45.0]
[1724638829009,26.324,158.13,158.07,6.3262]
[1724638829207,20.0,158.13,158.1,6.325]
[1724638829597,1.58126459,158.14,158.1,6.325]
[1724638830318,20.0,158.15,158.11,6.3243]
[1724638830609,6.3223,158.17,158.11,6.3243]
[1724638831312,1.58118345,158.16,158.11,6.3243]
[1724638831520,1.58118345,158.16,158.03,45.0]
[1724638831521,37.14632442,158.14,158.03,45.0]
[1724638831694,1.58152596,158.13,158.08,6.3258]
[1724638831890,20.0,158.13,158.08,6.3258]
[1724638832102,20.0,158.13,158.04,20.0]
[1724638832103,1.58149959,158.12,158.04,20.0]
[1724638832293,1.58149959,158.12,158.01,30.82282442]
[1724638832294,1.58149959,158.12,158.02,20.0]
[1724638832494,6.3247,158.11,158.02,20.0]
[1724638832805,1.58169821,158.1,158.06,6.3266]
[1724638832996,20.0,158.11,158.06,6.3266]
[1724638833193,20.0,158.11,158.02,1.26535278]
[1724638833415,1.58169305,158.1,158.07,6.3262]
[1724638833808,30.82282442,158.14,158.08,6.3258]
[1724638834030,30.82282442,158.16,158.03,30.82282442]
[1724638834191,21.58124193,158.15,158.04,20.0]
[1724638834396,1.58137474,158.14,158.04,20.0]
[1724638834592,1.58137474,158.14,158.09,6.3254]
[1724638834906,12.9646882,158.18,158.05,32.06691915]
[1724638835220,12.7044,158.18,158.11,6.3243]
[1724638835417,30.82282442,158.16,158.06,81.4485]
[1724638835618,1.58128258,158.15,158.06,81.4485]
[1724638835922,1.58128237,158.16,158.1,6.325]
[1724638836298,6.3231,158.15,158.1,6.325]
[1724638836499,1.58120393,158.14,158.1,6.325]
[1724638837032,1.58120393,158.14,158.08,6.3255]
[1724638838131,6.324,158.13,158.06,16.4485]
[1724638838297,1.58147949,158.12,158.07,6.3262]
[1724638838624,7.90577949,158.12,158.07,6.3262]
[1724638839012,1.58147949,158.12,158.06,16.4485]
[1724638839209,1.58144355,158.14,158.06,16.4485]
[1724638839411,6.3244,158.12,158.06,16.4485]
[1724638839607,1.58153317,158.11,158.06,22.775]
[1724638839798,6.3239,158.13,158.07,6.3262]
[1724638840224,20.0,158.12,158.07,6.3262]
[1724638840924,1.58151093,158.11,158.07,6.3262]
[1724638841299,1.58151093,158.11,158.06,22.7751]
[1724638841500,1.58151523,158.1,158.06,22.7751]
[1724638841697,7.90661523,158.1,158.06,16.4485]
[1724638841923,7.90661523,158.1,158.01,16.5952]
[1724638842124,6.3259,158.08,158.03,6.3278]
[1724638842328,1.58194534,158.07,158.03,6.3278]
[1724638844031,26.3255,158.09,158.03,6.3278]
[1724638844442,7.90794039,158.08,158.01,22.9235]
[1724638844611,1.5819484,158.07,158.01,16.5952]
[1724638844922,1.5819484,158.07,158.03,6.3277]
[1724638845308,7.9082484,158.07,158.01,22.9235]
[1724638845509,7.9082484,158.07,158.0,28.019825]
[1724638845510,40.03114801,158.07,158.0,28.019825]
[1724638845706,6.3283,158.02,158.0,28.019825]
[1724638845932,1.58231817,158.01,158.0,28.019825]
[1724638846228,51.04329961,158.01,158.0,28.019825]
[1724638846434,6.33,157.98,157.87,15.6363]
[1724638846646,149.74637301,158.01,157.72,43.1469974]
[1724638846647,38.44919961,157.94,157.79,15.6363]
[1724638846933,21.58296807,157.97,157.79,15.6363]
[1724638846934,6.3327,157.91,157.79,15.6363]
[1724638847107,1.58376341,157.9,157.79,15.6363]
[1724638847308,1.58376341,157.9,157.7,20.0]
[1724638847309,38.44919961,157.85,157.77,6.3381]
[1724638847609,7.91793953,157.88,157.65,35.6363]
[1724638847803,20.0,157.9,157.71,1.5858212]
[1724638847804,6.335,157.86,157.71,1.5858212]
[1724638848032,27.91947004,157.85,157.66,20.93778749]
[1724638848238,20.0,157.9,157.66,20.93778749]
[1724638848239,1.58434039,157.84,157.78,6.3378]
[1724638848419,1.58421613,157.89,157.78,21.9741]
[1724638848726,38.44919961,157.79,157.7,15.6363]
[1724638849232,17.37728985,157.88,157.73,6.3398]
[1724638849233,21.58478957,157.78,157.73,6.3398]
[1724638849421,20.0,157.78,157.73,6.3398]
[1724638849650,45.0,157.87,157.7,15.6363]
[1724638849933,38.44919961,157.82,157.7,15.6363]
[1724638850240,21.58473853,157.81,157.7,15.6363]
[1724638850907,20.0,157.83,157.71,0.35599285]
[1724638851126,1.58471691,157.82,157.7,15.6363]
[1724638851331,7.92101691,157.82,157.7,15.6363]
[1724638851631,1.5847979,157.81,157.7,21.9772]
[1724638851815,1.5847979,157.81,157.73,6.3399]
[1724638852022,1.58451155,157.82,157.73,6.3399]
[1724638852408,6.3338,157.89,157.75,8.42395971]
[1724638852624,1.58427397,157.88,157.75,7.1573039]
[1724638852824,45.31727343,157.9,157.76,46.26741748]
[1724638853016,45.31727343,157.9,157.77,39.71639378]
[1724638853231,38.44919961,157.93,157.82,15.3192]
[1724638853549,38.44919961,157.93,157.83,1.26516703]
[1724638853756,38.44919961,157.93,157.83,45.0]
[1724638853757,1.58365714,157.92,157.83,45.0]
[1724638854447,1.58344971,157.91,157.83,45.0]
[1724638854657,1.58344971,157.91,157.82,15.3192]
[1724638854826,38.44919961,157.9,157.82,15.3192]
[1724638855019,1.58406363,157.89,157.82,15.3192]
[1724638855529,1.58385106,157.88,157.82,15.3192]
[1724638856041,6.57355222,157.88,157.82,15.3192]
[1724638856238,1.58385075,157.89,157.82,15.3192]
[1724638856448,38.44919961,157.9,157.82,15.3192]
[1724638856632,6.57310038,157.9,157.82,15.3192]
[1724638856826,1.58360964,157.92,157.82,15.3192]
[1724638857027,6.3332,157.9,157.82,15.3192]
[1724638857223,6.86807382,157.98,157.83,103.44919961]
[1724638857429,38.44919961,157.91,157.83,45.0]
[1724638857628,1.58371383,157.9,157.83,45.0]
[1724638858258,1.58369687,157.89,157.82,15.3192]
[1724638858441,1.58369687,157.89,157.83,45.0]
[1724638858954,6.57466598,157.93,157.84,1.26702966]
[1724638859156,54.27549961,157.97,157.84,1.26702966]
[1724638859469,60.85167188,157.97,157.84,20.0]
[1724638859771,6.3325,157.92,157.85,45.0]
[1724638859933,1.58358482,157.91,157.85,45.0]
[1724638860131,6.3315,157.94,157.84,46.26685918]
[1724638860450,1.58344248,157.93,157.84,45.0]
[1724638860637,6.3336,157.89,157.82,15.3192]
[1724638860845,1.58387842,157.88,157.82,15.3192]
[1724638861065,6.3328,157.91,157.83,1.26710173]
[1724638861458,6.3328,157.91,157.82,15.3192]
[1724638861660,7.91695941,157.9,157.82,15.3192]
[1724638861961,45.02537188,157.97,157.83,39.71606122]
[1724638862162,45.02537188,157.97,157.84,20.0]
[1724638862368,6.57617227,157.97,157.86,45.10959961]
[1724638862575,6.3307,157.96,157.87,21.26648142]
[1724638862745,15.49609439,158.04,157.87,21.26648142]
[1724638862746,38.44919961,158.06,157.92,38.44919961]
[1724638863070,12.90117278,158.03,157.93,46.26609983]
[1724638863227,6.328,158.03,157.94,20.0]
[1724638863435,6.328,158.03,157.95,46.26587206]
[1724638863648,6.328,158.03,157.96,1.26583881]
[1724638863859,6.328,158.03,157.95,83.44919961]
[1724638864034,6.3273,158.05,157.96,20.44575352]
[1724638864231,6.57273437,158.07,157.97,51.6604]
[1724638864457,1.58209898,158.06,157.97,51.6604]
[1724638864812,6.57273437,158.07,157.98,0.44582024]
[1724638865141,6.57273437,158.07,157.98,20.44582024]
[1724638865447,8.96679439,158.13,158.0,16.2697]
[1724638865753,6.3253,158.1,158.01,83.89377086]
[1724638865934,12.89804689,158.12,158.02,0.444415]
[1724638866251,6.57344689,158.12,158.02,0.444415]
[1724638866458,1.58170854,158.11,158.01,45.0]
[1724638866650,6.57344689,158.12,158.02,0.44449815]
[1724638866851,46.15613571,158.17,158.02,20.0]
[1724638866852,1.58152657,158.16,158.02,20.0]
[1724638867030,6.3231,158.15,158.03,45.0]
[1724638867235,6.3244,158.12,158.04,20.0]
[1724638867431,1.58155473,158.11,158.04,20.0]
[1724638867640,6.3244,158.12,158.05,45.0]
[1724638867862,8.96679439,158.15,158.0,16.2697]
[1724638867863,47.73765098,158.11,158.0,16.2697]
[1724638868039,1.58194679,158.1,158.01,45.0]
[1724638868456,46.15613571,158.13,158.02,0.44462323]
[1724638868770,55.1229301,158.16,158.02,0.44462323]
[1724638868943,46.15613571,158.13,158.01,45.0]
[1724638869151,1.58184495,158.12,158.01,45.0]
[1724638869477,1.58171035,158.11,158.01,45.0]
[1724638869674,1.58165538,158.1,158.01,45.0]
[1724638869965,6.3257,158.09,158.02,0.44464917]
[1724638870157,6.3254,158.1,158.02,0.44464917]
[1724638870363,6.3254,158.1,158.0,16.2697]
[1724638870856,6.3268,158.06,158.0,16.2697]
[1724638871056,1.58211864,158.05,158.0,16.2697]
[1724638871272,46.15613571,158.08,158.0,16.2697]
[1724638871476,6.3261,158.08,158.0,16.2697]
[1724638871759,7.90871452,158.07,158.0,16.2697]
[1724638872368,6.3268,158.06,158.0,16.2697]
[1724638872549,6.3261,158.08,158.01,0.44520759]
[1724638872749,6.86836834,158.13,158.01,0.44520759]
[1724638872951,6.3245,158.12,158.01,0.44520759]
[1724638873152,1.58152533,158.11,158.01,20.0]
[1724638873365,1.58152533,158.11,158.0,16.2697]
[1724638873366,1.58169796,158.1,158.0,16.2697]
[1724638873847,6.3265,158.07,158.0,16.2697]
[1724638874040,6.326,158.08,158.0,16.2697]
[1724638874241,1.58175609,158.07,158.01,45.0]
[1724638874449,46.15613571,158.14,158.02,0.44497046]
[1724638874944,6.3249,158.11,158.02,0.44497046]
[1724638875143,254.30856818,158.15,158.02,20.0]
[1724638875144,6.3246,158.12,158.02,20.0]
[1724638875339,6.3246,158.12,158.03,45.0]
[1724638875753,6.3237,158.14,158.04,0.44387267]
[1724638875959,6.3228,158.16,158.04,46.60000838]
[1724638876175,6.3228,158.16,158.05,65.44325975]
[1724638876354,7.90424382,158.15,158.06,6.4378]
[1724638876555,6.3231,158.15,158.07,65.44344836]
[1724638876761,6.3231,158.15,158.08,0.4433143]
[1724638877467,6.3231,158.15,158.09,15.1339]
[1724638877862,12.89452503,158.17,158.1,0.44304622]
[1724638878174,6.3226,158.17,158.1,45.0]
[1724638878369,13.4341341,158.21,158.1,45.0]
[1724638878574,6.3215,158.19,158.1,45.0]
[1724638878780,19.7549341,158.21,158.11,0.44227628]
[1724638878952,6.56576576,158.21,158.11,0.44227628]
[1724638879270,23.12859598,158.28,158.11,20.44227628]
[1724638879271,6.3204,158.22,158.11,20.44227628]
[1724638879477,6.3204,158.22,158.12,45.0]
[1724638879779,6.3204,158.22,158.13,20.44187143]
[1724638879990,6.3204,158.22,158.14,45.0]
[1724638880181,1.58039177,158.21,158.14,45.0]
[1724638880378,6.56376317,158.24,158.13,20.0]
[1724638880379,1.58062937,158.2,158.13,20.0]
[1724638880581,68.51889888,158.24,158.1,20.0]
[1724638880788,1.580843,158.23,158.11,45.0]
[1724638881168,6.321,158.21,158.12,20.0]
[1724638881470,6.3216,158.19,158.13,45.0]
[1724638882002,6.3217,158.19,158.09,15.1339]
[1724638882187,1.58097827,158.18,158.09,15.1339]
[1724638882491,1.58106323,158.17,158.09,15.1339]
[1724638882995,6.3235,158.14,158.09,15.1339]
[1724638883180,1.58140713,158.13,158.09,15.1339]
[1724638884106,6.3113,158.19,158.1,0.44325822]
[1724638884404,22.67176834,158.2,158.09,15.1339]
[1724638885471,6.3231,158.15,158.09,15.1339]
[1724638885690,7.90464976,158.14,158.09,15.1339]
[1724638885975,6.3235,158.14,158.09,15.1339]
[1724638886314,6.3223,158.17,158.1,45.4431115]
[1724638886474,6.3218,158.19,158.11,0.44228051]
[1724638886669,1.58079677,158.19,158.1,45.0]
[1724638886973,46.15613571,158.21,158.09,15.1339]
[1724638887373,6.3231,158.15,158.09,15.1339]
[1724638887594,6.3251,158.1,158.09,15.1339]
[1724638887798,1.58139357,158.16,158.09,15.1339]
[1724638888289,6.3245,158.12,158.09,15.1339]
[1724638888492,1.58139357,158.16,158.09,15.1339]
[1724638888697,6.3243,158.12,158.09,15.1339]
[1724638888900,6.3251,158.1,158.09,15.1339]
[1724638889192,6.3272,158.05,158.03,15.5526]
[1724638889571,6.3279,158.03,157.99,15.5526]
[1724638889996,6.57068038,158.07,158.0,1.15290249]
[1724638890177,1.58197548,158.06,157.99,15.5526]
[1724638890495,8.96679439,158.13,157.99,15.5526]
[1724638890496,6.57000396,158.08,158.0,1.15285349]
[1724638890672,1.58184548,158.11,157.99,15.5526]
[1724638890882,8.15121033,158.1,157.99,15.5526]
[1724638891113,6.3263,158.07,157.99,15.5526]
[1724638891286,8.15121033,158.1,157.99,15.5526]
[1724638891592,1.58166626,158.09,158.0,20.0]
[1724638891800,6.3247,158.11,158.01,46.15145583]
[1724638891983,6.56861697,158.13,158.02,21.15141951]
[1724638892293,6.3243,158.12,158.03,45.0]
[1724638892498,6.3243,158.12,158.04,1.15114765]
[1724638892680,6.3239,158.14,158.06,21.6568]
[1724638892886,6.86836834,158.16,158.07,46.1507202]
[1724638892887,6.3231,158.15,158.07,46.1507202]
[1724638893081,6.86836834,158.16,158.08,1.15046665]
[1724638893285,6.56671825,158.17,158.08,1.15046665]
[1724638893487,1.58097955,158.16,158.08,20.0]
[1724638893675,6.3236,158.14,158.07,45.0]
[1724638893876,6.3231,158.15,158.08,1.15053783]
[1724638894614,46.15613571,158.18,158.08,1.15053783]
[1724638894615,6.3235,158.14,158.08,1.15053783]
[1724638895090,6.3235,158.14,158.07,45.0]
[1724638895291,7.90532494,158.13,158.07,45.0]
[1724638895493,1.58130712,158.12,158.07,45.0]
[1724638895701,6.3244,158.12,158.06,21.6568]
[1724638896077,61.96143571,158.18,158.07,1.15115963]
[1724638896078,6.3239,158.14,158.07,1.15115963]
[1724638896293,7.90519917,158.13,158.07,45.0]
[1724638896509,1.58134626,158.12,158.06,21.6568]
[1724638896798,68.82980405,158.18,158.07,46.15117047]
[1724638897380,77.79659844,158.18,158.07,1.15117047]
[1724638897575,55.54825732,158.17,158.06,21.6568]
[1724638897784,46.15613571,158.15,158.06,21.6568]
[1724638898002,46.15613571,158.12,158.06,15.3566]
[1724638898202,46.15613571,158.12,158.02,16.3634]
[1724638898203,1.58175565,158.11,158.02,16.3634]
[1724638898497,1.58191564,158.1,158.02,16.3634]
[1724638898704,6.3266,158.07,158.02,16.3634]
[1724638899088,1.58203201,158.06,158.02,16.3634]
[1724638899284,6.3268,158.06,158.02,16.3634]
[1724638899889,6.3262,158.08,158.02,16.3634]
[1724638900705,6.3263,158.07,158.02,16.3634]
[1724638901293,55.1229301,158.15,158.03,1.15233663]
[1724638901501,6.325,158.11,158.03,46.15233663]